bitfinex-derivatives/quotes_SOLF0:USTF0_20240824
["timestamp","ask_amount","ask_price","bid_price","bid_amount"]
[1724488051205,0.04534446,154.5,154.48,3.19794093]
[1724488051407,0.04534446,154.5,154.47,3.27843661]
[1724488051607,0.04534446,154.5,154.48,3.19772733]
[1724488051803,0.04534446,154.5,154.49,3.19772733]
[1724488054914,0.04534446,154.5,154.48,11.1848]
[1724488055117,0.04534446,154.5,154.49,3.19749448]
[1724488056114,0.04534446,154.5,154.48,11.1848]
[1724488056510,0.04534446,154.5,154.49,3.1968207]
[1724488057415,0.04534446,154.5,154.49,3.19667724]
[1724488059016,0.04534446,154.5,154.49,11.14667724]
[1724488059922,0.04534446,154.5,154.49,7.95]
[1724488060117,0.04534446,154.5,154.49,11.14637952]
[1724488065912,0.04534446,154.5,154.49,11.1462868]
[1724488069123,0.04534446,154.5,154.49,11.14631509]
[1724488069531,0.04534446,154.5,154.49,7.95]
[1724488069723,0.04534446,154.5,154.49,11.14627055]
[1724488072524,0.04534446,154.5,154.49,7.95]
[1724488073627,0.04534446,154.5,154.49,11.1846]
[1724488075326,0.04534446,154.5,154.49,14.38049271]
[1724488078851,0.04534446,154.5,154.49,11.1846]
[1724488079031,0.04534446,154.5,154.49,14.38000501]
[1724488079435,0.04534446,154.5,154.49,11.1846]
[1724488079637,0.04534446,154.5,154.49,14.38018852]
[1724488081460,0.04534446,154.5,154.49,11.1846]
[1724488081942,0.04534446,154.5,154.49,14.38102582]
[1724488084958,0.04534446,154.5,154.49,11.1846]
[1724488085143,0.04534446,154.5,154.49,14.38120395]
[1724488088366,0.04534446,154.5,154.49,11.1846]
[1724488088551,0.04534446,154.5,154.49,14.38173527]
[1724488095667,0.04534446,154.5,154.49,11.1846]
[1724488096157,0.04534446,154.5,154.49,14.38160345]
[1724488109592,0.04534446,154.5,154.49,11.1846]
[1724488109757,0.04534446,154.5,154.49,14.38178894]
[1724488115364,0.04534446,154.5,154.49,11.1846]
[1724488115667,0.04534446,154.5,154.49,14.38181512]
[1724488119767,0.04534446,154.5,154.49,11.1846]
[1724488119970,0.04534446,154.5,154.49,14.38178893]
[1724488126109,0.04534446,154.5,154.49,11.1846]
[1724488126574,0.04534446,154.5,154.49,14.3817454]
[1724488127377,0.04534446,154.5,154.49,6.4317454]
[1724488127585,0.04534446,154.5,154.49,14.3817454]
[1724488128775,0.04534446,154.5,154.49,6.4317454]
[1724488128975,0.04534446,154.5,154.49,14.3817454]
[1724488132788,0.04534446,154.5,154.49,11.1846]
[1724488132981,0.04534446,154.5,154.49,14.38169598]
[1724488139184,0.04534446,154.5,154.49,14.3817351]
[1724488139520,0.04534446,154.5,154.49,11.1846]
[1724488139691,0.04534446,154.5,154.49,14.3817351]
[1724488141602,0.04534446,154.5,154.49,14.38175894]
[1724488144602,0.04534446,154.5,154.49,14.38174559]
[1724488147701,0.04534446,154.5,154.49,11.1846]
[1724488147907,0.04534446,154.5,154.49,14.38179274]
[1724488148698,0.04534446,154.5,154.49,11.1846]
[1724488148902,0.04534446,154.5,154.49,14.3817562]
[1724488154306,0.04534446,154.5,154.49,11.1846]
[1724488154500,0.04534446,154.5,154.49,14.3817095]
[1724488157340,0.04534446,154.5,154.49,11.1846]
[1724488157516,0.04534446,154.5,154.49,14.38173569]
[1724488159909,0.04534446,154.5,154.49,11.1846]
[1724488160114,0.04534446,154.5,154.49,14.38173569]
[1724488164213,0.04534446,154.5,154.49,11.1846]
[1724488164415,0.04534446,154.5,154.49,7.95]
[1724488164609,0.04534446,154.5,154.49,11.1472676]
[1724488167624,0.04534446,154.5,154.49,7.95]
[1724488167821,0.04534446,154.5,154.49,11.14729757]
[1724488168020,0.04534446,154.5,154.49,7.95]
[1724488168217,0.04534446,154.5,154.49,11.14729455]
[1724488168519,0.04534446,154.5,154.49,14.38199455]
[1724488170816,0.04534446,154.5,154.49,11.1847]
[1724488171012,0.04534446,154.5,154.49,14.38189075]
[1724488176020,0.04534446,154.5,154.49,14.38183813]
[1724488177256,0.04534446,154.5,154.49,11.1847]
[1724488177622,0.04534446,154.5,154.49,14.38183977]
[1724488180421,0.04534446,154.5,154.49,11.1847]
[1724488180623,0.04534446,154.5,154.49,14.3818624]
[1724488186127,0.04534446,154.5,154.49,11.1847]
[1724488186336,0.04534446,154.5,154.49,14.38181026]
[1724488186635,0.04534446,154.5,154.49,14.38183645]
[1724488187026,0.04534446,154.5,154.49,11.1847]
[1724488187222,0.04534446,154.5,154.49,14.38185285]
[1724488187430,0.04534446,154.5,154.49,11.1847]
[1724488187732,0.04534446,154.5,154.49,14.38185902]
[1724488190349,0.04534446,154.5,154.49,11.1847]
[1724488190629,0.04534446,154.5,154.49,14.38180693]
[1724488192934,3.2334,154.55,154.51,3.2341]
[1724488193140,3.2334,154.55,154.53,7.95]
[1724488193638,3.2334,154.55,154.54,3.1964476]
[1724488194235,1.32454743,154.56,154.54,3.1964476]
[1724488194438,4.55784743,154.56,154.55,3.1964476]
[1724488202250,4.55784743,154.56,154.53,0.04751035]
[1724488202448,4.55784743,154.56,154.55,3.19629156]
[1724488203556,4.55784743,154.56,154.53,0.04751035]
[1724488203557,1.32454743,154.56,154.53,0.04751035]
[1724488204053,3.2336,154.54,154.53,0.04751035]
[1724488204248,3.2336,154.54,154.53,3.24435181]
[1724488205151,3.2336,154.54,154.53,0.04751035]
[1724488208648,3.2339,154.53,154.5,3.2344]
[1724488208853,3.2339,154.53,154.51,3.19721605]
[1724488209056,3.2339,154.53,154.5,3.2344]
[1724488209358,3.2339,154.53,154.51,3.19721605]
[1724488209654,3.2339,154.53,154.5,3.28060908]
[1724488209850,3.2339,154.53,154.51,3.19721605]
[1724488210154,3.2339,154.53,154.5,3.28060908]
[1724488210354,3.2339,154.53,154.51,3.19721605]
[1724488210554,3.2339,154.53,154.5,3.28060908]
[1724488210758,3.2339,154.53,154.51,3.19721605]
[1724488210963,3.2339,154.53,154.5,3.28060908]
[1724488211164,3.2339,154.53,154.51,3.19721605]
[1724488211465,3.2339,154.53,154.5,3.28060908]
[1724488211664,3.2339,154.53,154.51,3.19718986]
[1724488211861,3.2339,154.53,154.5,3.28060908]
[1724488212061,3.2339,154.53,154.51,3.19718986]
[1724488212263,3.2339,154.53,154.5,3.28060908]
[1724488212569,3.2339,154.53,154.51,3.19721605]
[1724488212867,3.2339,154.53,154.5,0.04620908]
[1724488213070,3.2339,154.53,154.51,3.19721605]
[1724488213259,3.2339,154.53,154.5,0.04620908]
[1724488213462,3.2339,154.53,154.51,3.19721605]
[1724488213665,3.2339,154.53,154.5,0.04620908]
[1724488213866,3.2339,154.53,154.51,3.19721605]
[1724488214066,3.2339,154.53,154.5,0.04620908]
[1724488214265,3.2339,154.53,154.51,3.19721664]
[1724488214470,3.2339,154.53,154.5,0.04620908]
[1724488215369,3.2339,154.53,154.51,3.19721664]
[1724488215571,3.2339,154.53,154.52,3.19721664]
[1724488216079,3.2339,154.53,154.5,7.99620908]
[1724488216267,3.2339,154.53,154.51,3.19719339]
[1724488216461,3.2339,154.53,154.52,3.19719339]
[1724488217906,3.2339,154.53,154.5,7.99620908]
[1724488218474,3.2339,154.53,154.51,3.19719007]
[1724488218670,3.2339,154.53,154.52,3.19719007]
[1724488219277,3.2339,154.53,154.5,7.99620908]
[1724488219574,3.2339,154.53,154.51,3.19719066]
[1724488219770,3.2339,154.53,154.52,3.19719066]
[1724488220068,3.2337,154.54,154.52,3.19719066]
[1724488220268,3.2337,154.54,154.5,11.23050908]
[1724488220475,3.2337,154.54,154.51,3.19718926]
[1724488220669,3.2337,154.54,154.5,11.23050908]
[1724488220670,3.2337,154.54,154.52,3.19718926]
[1724488220870,3.2337,154.54,154.5,11.23050908]
[1724488221473,3.2337,154.54,154.51,3.19717974]
[1724488221673,3.2337,154.54,154.52,3.19717974]
[1724488221977,3.2337,154.54,154.5,11.23050908]
[1724488222273,3.2337,154.54,154.51,3.19718926]
[1724488222472,3.2337,154.54,154.52,3.19718926]
[1724488222664,3.2337,154.54,154.5,11.23050908]
[1724488222870,3.2337,154.54,154.51,3.19718926]
[1724488223169,3.2337,154.54,154.52,3.19718926]
[1724488223468,3.2337,154.54,154.5,11.23050908]
[1724488223669,3.2337,154.54,154.51,3.19718926]
[1724488223873,3.2337,154.54,154.52,3.19718926]
[1724488224073,3.2337,154.54,154.5,11.23050908]
[1724488224473,3.2339,154.53,154.51,3.19719258]
[1724488224769,3.2339,154.53,154.5,11.23050908]
[1724488225163,3.2339,154.53,154.52,3.19719125]
[1724488225568,3.2339,154.53,154.52,6.39438191]
[1724488226975,3.2339,154.53,154.52,3.19719125]
[1724488228372,3.2341,154.52,154.5,0.04620908]
[1724488228566,3.2341,154.52,154.51,3.19750402]
[1724488230280,3.2341,154.52,154.5,0.04620908]
[1724488230972,3.2341,154.52,154.51,3.19747833]
[1724488232785,3.28160601,154.53,154.51,11.14747833]
[1724488232974,3.28160601,154.53,154.52,3.19747833]
[1724488234272,3.28160601,154.53,154.52,3.19692773]
[1724488240676,3.28160601,154.53,154.5,11.23070908]
[1724488241184,3.28160601,154.53,154.51,3.19716436]
[1724488241379,3.28160601,154.53,154.52,3.19716436]
[1724488244409,3.28160601,154.53,154.5,11.23070908]
[1724488244574,3.28160601,154.53,154.51,3.1970233]
[1724488244784,3.28160601,154.53,154.52,3.1970233]
[1724488244987,3.28160601,154.53,154.5,11.23070908]
[1724488245186,3.28160601,154.53,154.51,3.19702331]
[1724488245381,3.28160601,154.53,154.52,3.19702331]
[1724488247001,3.28160601,154.53,154.5,11.23070908]
[1724488247209,3.28160601,154.53,154.52,3.19716436]
[1724488247382,3.28160601,154.53,154.5,11.23070908]
[1724488247683,3.28160601,154.53,154.51,3.19716436]
[1724488247889,3.28160601,154.53,154.52,3.19716436]
[1724488254091,3.28160601,154.53,154.5,7.99620908]
[1724488254292,3.28160601,154.53,154.51,3.19716436]
[1724488254495,3.28160601,154.53,154.52,3.19716436]
[1724488256893,3.28160601,154.53,154.5,7.99620908]
[1724488257095,3.28160601,154.53,154.52,3.1971384]
[1724488257484,3.28160601,154.53,154.51,3.1971384]
[1724488257789,3.28160601,154.53,154.52,3.1971384]
[1724488260008,3.28160601,154.53,154.5,7.99620908]
[1724488260498,3.28160601,154.53,154.51,3.19716519]
[1724488260698,3.28160601,154.53,154.52,3.19716519]
[1724488262799,3.28160601,154.53,154.5,7.99620908]
[1724488263093,3.28160601,154.53,154.51,3.19713883]
[1724488263298,3.28160601,154.53,154.52,3.19713883]
[1724488263599,0.04770601,154.53,154.52,3.19713883]
[1724488264500,0.04770601,154.53,154.51,7.95]
[1724488264684,0.04770601,154.53,154.52,3.19695436]
[1724488265087,3.28150601,154.53,154.52,3.19695436]
[1724488265690,3.28150601,154.53,154.5,0.04620908]
[1724488265898,3.28150601,154.53,154.52,3.19713744]
[1724488266299,0.04770601,154.53,154.52,3.19713744]
[1724488266995,3.28150601,154.53,154.52,3.19713744]
[1724488271602,1.3563,154.58,154.52,11.14713744]
[1724488271798,4.60064006,154.64,154.53,3.19713744]
[1724488272101,7.95,154.6,154.54,3.19713744]
[1724488272292,3.2650396,154.59,154.55,3.19713744]
[1724488272492,3.2650396,154.59,154.56,3.19713744]
[1724488272696,3.31434317,154.59,154.56,0.04097014]
[1724488274202,7.95,154.58,154.56,0.04097014]
[1724488274495,3.2332,154.57,154.56,0.04097014]
[1724488275203,3.2332,154.57,154.48,137.25472203]
[1724488275204,3.2338,154.54,154.48,137.25472203]
[1724488275400,7.95,154.53,154.49,3.19719817]
[1724488275701,7.95,154.53,154.5,3.19719817]
[1724488275916,3.2338,154.54,154.49,11.1845]
[1724488276198,0.04767186,154.53,154.5,3.23881388]
[1724488276399,0.04767186,154.53,154.51,3.19716105]
[1724488276601,0.04767186,154.53,154.5,0.04165283]
[1724488276800,0.04767186,154.53,154.51,3.19740111]
[1724488276993,0.04767186,154.53,154.5,0.04165283]
[1724488277201,0.04767186,154.53,154.51,3.19740111]
[1724488277500,3.28157186,154.53,154.5,0.04165283]
[1724488277700,3.28157186,154.53,154.51,3.19740111]
[1724488277892,3.28157186,154.53,154.5,0.04165283]
[1724488278097,3.28157186,154.53,154.51,3.19740111]
[1724488278397,3.28157186,154.53,154.5,0.04165283]
[1724488278591,3.28157186,154.53,154.51,3.19740111]
[1724488278795,3.28157186,154.53,154.5,0.04165283]
[1724488279306,3.28157186,154.53,154.51,3.19738144]
[1724488279503,3.28157186,154.53,154.5,0.04165283]
[1724488279700,3.28157186,154.53,154.51,3.19738073]
[1724488279900,3.28157186,154.53,154.5,0.04165283]
[1724488280204,3.28157186,154.53,154.51,3.19736332]
[1724488280401,3.28157186,154.53,154.5,0.04165283]
[1724488280602,3.28157186,154.53,154.51,3.19736142]
[1724488280798,3.28157186,154.53,154.5,0.04165283]
[1724488280999,3.28157186,154.53,154.51,3.19740111]
[1724488281304,0.04767186,154.53,154.52,14.38148782]
[1724488284407,0.04767186,154.53,154.52,6.43148782]
[1724488284707,0.04767186,154.53,154.52,14.38148782]
[1724488285108,0.04767186,154.53,154.52,6.43148782]
[1724488285412,0.04767186,154.53,154.52,14.38148782]
[1724488286210,0.04767186,154.53,154.52,6.43148782]
[1724488286405,0.04767186,154.53,154.52,14.38148782]
[1724488290610,3.2326,154.59,154.52,11.14738782]
[1724488290810,3.2326,154.59,154.55,7.95]
[1724488291617,3.27605832,154.59,154.55,7.99180976]
[1724488292419,3.27605832,154.59,154.55,11.22520976]
[1724488299319,3.2329,154.58,154.55,0.04180976]
[1724488303235,3.27605832,154.59,154.55,3.27520976]
[1724488307831,3.27605832,154.59,154.56,3.2332]
[1724488310932,11.22605832,154.59,154.55,3.27510976]
[1724488312724,7.99345832,154.59,154.55,0.04180976]
[1724488313538,3.2328,154.58,154.55,0.04180976]
[1724488317537,3.2331,154.57,154.55,0.04180976]
[1724488327951,3.2328,154.58,154.55,0.04180976]
[1724488329852,3.2331,154.57,154.55,0.04180976]
[1724488338752,3.2332,154.56,154.55,0.04180976]
[1724488356179,3.2332,154.56,154.55,3.23628686]
[1724488356362,3.2332,154.56,154.55,0.04180976]
[1724488356571,3.2332,154.56,154.55,3.23617106]
[1724488357864,3.2331,154.57,154.55,3.23617106]
[1724488358072,3.2331,154.57,154.56,3.1943613]
[1724488359858,3.2328,154.58,154.56,3.1943613]
[1724488360069,3.2328,154.58,154.55,3.27520976]
[1724488360268,3.2328,154.58,154.56,3.19360582]
[1724488360472,3.2328,154.58,154.55,3.27520976]
[1724488360666,3.2328,154.58,154.56,3.19360582]
[1724488360863,3.2328,154.58,154.55,0.04180976]
[1724488361169,3.2328,154.58,154.56,3.19357851]
[1724488361375,3.2328,154.58,154.55,0.04180976]
[1724488361563,3.233,154.57,154.56,3.19357851]
[1724488366476,3.233,154.57,154.55,0.04180976]
[1724488366770,0.04345832,154.59,154.56,3.19355345]
[1724488366771,3.2329,154.58,154.56,3.19355345]
[1724488366961,3.2329,154.58,154.55,3.27520976]
[1724488367670,3.2329,154.58,154.56,3.19360515]
[1724488367872,3.27605832,154.59,154.56,3.2332]
[1724488368071,0.04345832,154.59,154.55,0.04180976]
[1724488368372,0.04345832,154.59,154.56,3.19370686]
[1724488368577,0.04345832,154.59,154.56,3.233]
[1724488368774,0.04345832,154.59,154.56,11.183]
[1724488369975,3.27615832,154.59,154.56,11.183]
[1724488376192,0.04345832,154.59,154.56,11.183]
[1724488376789,0.04345832,154.59,154.57,3.2329]
[1724488381501,0.04345832,154.59,154.57,11.1829]
[1724488383795,0.04345832,154.59,154.57,3.2329]
[1724488398605,3.27605832,154.59,154.56,3.2332]
[1724488398917,3.27605832,154.59,154.57,3.19301581]
[1724488399112,3.27605832,154.59,154.56,3.2332]
[1724488399312,3.27605832,154.59,154.57,3.19301462]
[1724488399512,3.27605832,154.59,154.56,3.2332]
[1724488399715,3.27605832,154.59,154.57,3.19301581]
[1724488400013,3.27605832,154.59,154.56,3.2332]
[1724488400210,3.27605832,154.59,154.57,3.19301462]
[1724488400406,3.27605832,154.59,154.56,3.2332]
[1724488400611,3.27605832,154.59,154.57,3.193017]
[1724488400812,3.27605832,154.59,154.56,3.2332]
[1724488401011,3.27605832,154.59,154.57,3.19298731]
[1724488401212,3.27605832,154.59,154.56,3.2332]
[1724488401414,3.27605832,154.59,154.58,7.95]
[1724488401415,0.04345832,154.59,154.58,7.95]
[1724488402210,0.04345832,154.59,154.58,11.1828]
[1724488402613,0.04345832,154.59,154.58,7.95]
[1724488406319,0.04345832,154.59,154.58,11.1828]
[1724488411321,268.51492924,154.79,154.61,3.2321]
[1724488411517,11.14366249,154.67,154.61,11.1821]
[1724488411919,3.2316,154.64,154.61,7.95]
[1724488412423,3.27986951,154.64,154.61,7.99812996]
[1724488414921,0.04826951,154.64,154.61,11.23022996]
[1724488415528,0.04826951,154.64,154.62,3.2319]
[1724488417631,31.8,154.71,154.61,7.99812996]
[1724488417632,7.95,154.75,154.63,42.93471164]
[1724488417820,7.95,154.75,154.68,7.95]
[1724488418025,3.2297,154.73,154.68,3.2305]
[1724488418323,7.95,154.75,154.68,7.95]
[1724488418522,7.95,154.75,154.7,0.04637144]
[1724488418523,3.27657348,154.73,154.7,0.04637144]
[1724488419229,0.04687348,154.73,154.7,3.27667144]
[1724488419724,0.04687348,154.73,154.7,11.22667144]
[1724488420330,0.04687348,154.73,154.71,3.23]
[1724488420531,0.04687348,154.73,154.71,11.18]
[1724488420851,0.04687348,154.73,154.71,7.95]
[1724488421524,0.04687348,154.73,154.72,7.95]
[1724488422426,0.04687348,154.73,154.72,11.1799]
[1724488425131,1.3062,154.78,154.74,3.2294]
[1724488425327,1.3062,154.78,154.75,7.95]
[1724488425730,6.451,154.94,154.76,7.95]
[1724488425925,7.95,154.87,154.8,7.95]
[1724488426225,3.2276,154.83,154.82,0.04192216]
[1724488426431,7.95,154.83,154.81,0.04220012]
[1724488426630,7.95,154.83,154.8,0.04725637]
[1724488427130,2.611,154.82,154.8,0.04725637]
[1724488427355,3.228,154.81,154.8,0.04725637]
[1724488429036,3.2278,154.82,154.8,0.04725637]
[1724488429232,1.3464,154.86,154.8,7.99725637]
[1724488430332,3.2274,154.84,154.8,11.22545637]
[1724488430524,7.95,154.85,154.8,0.04725637]
[1724488430730,7.95,154.83,154.8,0.04725637]
[1724488432328,3.2279,154.82,154.8,0.04725637]
[1724488433631,3.228,154.81,154.8,0.04725637]
[1724488434255,11.178,154.81,154.8,0.04725637]
[1724488434622,3.2286,154.78,154.72,132.12967793]
[1724488434929,3.2286,154.78,154.74,3.2293]
[1724488435129,3.2286,154.78,154.72,132.12967793]
[1724488435531,0.04784961,154.77,154.74,3.2293]
[1724488439638,0.04784961,154.77,154.74,11.1793]
[1724488441540,0.04784961,154.77,154.74,3.2293]
[1724488443839,0.04784961,154.77,154.75,3.2292]
[1724488444843,0.04784961,154.77,154.76,3.229]
[1724488449044,0.04784961,154.77,154.73,0.04380283]
[1724488449045,0.04784961,154.77,154.75,3.2292]
[1724488460341,0.04784961,154.77,154.76,3.229]
[1724488460841,0.04784961,154.77,154.75,7.95]
[1724488461645,0.04784961,154.77,154.75,11.1792]
[1724488467541,0.04784961,154.77,154.74,1.369]
[1724488467747,0.04784961,154.77,154.74,9.319]
[1724488468947,0.04784961,154.77,154.75,7.95]
[1724488469647,0.04784961,154.77,154.76,3.229]
[1724488471657,0.04784961,154.77,154.75,11.1792]
[1724488473453,0.04784961,154.77,154.73,1.35970283]
[1724488473764,0.04784961,154.77,154.73,9.30970283]
[1724488474153,0.04784961,154.77,154.74,3.2293]
[1724488474756,0.04784961,154.77,154.73,1.35970283]
[1724488474958,0.04784961,154.77,154.73,0.04380283]
[1724488475454,0.04784961,154.77,154.74,3.2294]
[1724488476862,0.04784961,154.77,154.74,11.1794]
[1724488477162,3.27664961,154.77,154.74,7.95]
[1724488480364,3.27664961,154.77,154.73,11.22340283]
[1724488486267,3.27664961,154.77,154.74,3.17763516]
[1724488486468,3.27664961,154.77,154.73,11.22340283]
[1724488486663,3.27664961,154.77,154.74,3.17763516]
[1724488486869,3.27664961,154.77,154.73,11.22340283]
[1724488487071,3.27664961,154.77,154.74,3.17763516]
[1724488487374,3.27664961,154.77,154.75,3.17763516]
[1724488487672,3.27664961,154.77,154.73,11.22340283]
[1724488487970,3.27664961,154.77,154.74,3.17763516]
[1724488488166,3.27664961,154.77,154.75,3.17763516]
[1724488488468,3.27664961,154.77,154.73,11.22340283]
[1724488488864,3.27664961,154.77,154.74,3.1776281]
[1724488489085,3.27664961,154.77,154.73,11.22340283]
[1724488489264,3.2293,154.75,154.73,0.04380283]
[1724488489668,7.99784961,154.77,154.73,0.04380283]
[1724488490264,3.2292,154.76,154.73,0.04380283]
[1724488490472,3.2292,154.76,154.73,7.99380283]
[1724488491070,0.04784961,154.77,154.74,7.95]
[1724488491272,0.04784961,154.77,154.76,7.95]
[1724488491472,0.04784961,154.77,154.76,11.12793856]
[1724488492081,0.04784961,154.77,154.76,7.95]
[1724488492264,0.04784961,154.77,154.76,11.12760798]
[1724488495297,0.04784961,154.77,154.76,7.95]
[1724488495668,0.04784961,154.77,154.76,11.12729552]
[1724488498774,0.04784961,154.77,154.76,11.12737193]
[1724488499175,0.04784961,154.77,154.76,7.95]
[1724488499379,0.04784961,154.77,154.76,3.17715268]
[1724488500675,0.04784961,154.77,154.76,3.1775151]
[1724488504184,0.04784961,154.77,154.75,11.1792]
[1724488504374,0.04784961,154.77,154.76,3.17725249]
[1724488507402,0.04784961,154.77,154.75,11.1792]
[1724488507580,0.04784961,154.77,154.76,3.17858721]
[1724488507877,0.04784961,154.77,154.75,11.1792]
[1724488508179,0.04784961,154.77,154.76,3.1786138]
[1724488510903,0.04784961,154.77,154.75,11.1792]
[1724488511075,0.04784961,154.77,154.76,3.17861353]
[1724488511274,0.04784961,154.77,154.76,14.35761353]
[1724488514382,0.04784961,154.77,154.76,11.179]
[1724488514574,0.04784961,154.77,154.76,14.35658495]
[1724488514975,0.04784961,154.77,154.76,3.17758495]
[1724488517478,0.04784961,154.77,154.75,7.95]
[1724488518486,0.04784961,154.77,154.76,3.17903682]
[1724488520881,0.04784961,154.77,154.76,6.40803682]
[1724488521095,0.04784961,154.77,154.76,11.179]
[1724488521282,0.04784961,154.77,154.76,14.35805119]
[1724488524232,0.04784961,154.77,154.76,11.179]
[1724488524687,0.04784961,154.77,154.76,14.35756364]
[1724488527493,0.04784961,154.77,154.76,11.179]
[1724488527688,0.04784961,154.77,154.76,6.40738503]
[1724488528993,0.04784961,154.77,154.76,3.17838503]
[1724488529894,0.04784961,154.77,154.76,6.40738503]
[1724488530717,0.04784961,154.77,154.76,3.229]
[1724488530890,0.04784961,154.77,154.76,6.40791543]
[1724488535501,0.04784961,154.77,154.76,14.35791543]
[1724488537327,0.04784961,154.77,154.76,11.179]
[1724488537606,0.04784961,154.77,154.76,11.12892329]
[1724488540207,0.04784961,154.77,154.76,3.17892329]
[1724488540525,0.04784961,154.77,154.75,7.95]
[1724488540710,0.04784961,154.77,154.76,3.17933604]
[1724488545813,0.04784961,154.77,154.76,3.17945725]
[1724488546920,0.04784961,154.77,154.75,7.95]
[1724488547110,0.04784961,154.77,154.76,3.17926107]
[1724488547313,0.04784961,154.77,154.75,7.95]
[1724488547512,0.04784961,154.77,154.76,3.17925988]
[1724488549116,0.04784961,154.77,154.75,7.95]
[1724488549415,0.04784961,154.77,154.76,3.17981483]
[1724488555117,3.27664961,154.77,154.76,3.17981483]
[1724488555317,0.04784961,154.77,154.73,7.99380283]
[1724488555618,0.04784961,154.77,154.74,3.18145311]
[1724488555816,3.27664961,154.77,154.73,11.22330283]
[1724488556021,3.27664961,154.77,154.74,3.18103051]
[1724488556212,3.27664961,154.77,154.73,7.99380283]
[1724488556724,3.27664961,154.77,154.74,3.1809927]
[1724488556921,3.27664961,154.77,154.73,11.22340283]
[1724488557120,3.27664961,154.77,154.74,3.18022443]
[1724488557316,3.27664961,154.77,154.73,11.22340283]
[1724488557625,3.27664961,154.77,154.74,3.17998587]
[1724488557823,3.27664961,154.77,154.73,11.22340283]
[1724488558016,3.27664961,154.77,154.74,3.17970374]
[1724488558216,3.27664961,154.77,154.73,11.22340283]
[1724488558417,3.27664961,154.77,154.74,3.17962061]
[1724488558618,3.27664961,154.77,154.73,11.22340283]
[1724488558917,3.27664961,154.77,154.74,3.17961374]
[1724488559123,3.27664961,154.77,154.73,11.22340283]
[1724488559324,3.27664961,154.77,154.74,3.17960684]
[1724488559541,3.27664961,154.77,154.73,11.22340283]
[1724488559917,3.27664961,154.77,154.74,3.17960807]
[1724488560120,3.27664961,154.77,154.73,11.22340283]
[1724488560320,3.27664961,154.77,154.74,3.17960807]
[1724488560519,3.27664961,154.77,154.73,11.22340283]
[1724488560719,3.27664961,154.77,154.74,3.17954087]
[1724488560921,3.27664961,154.77,154.73,11.22340283]
[1724488561123,3.27664961,154.77,154.74,3.17954087]
[1724488561422,3.27664961,154.77,154.73,11.22340283]
[1724488561624,3.27664961,154.77,154.74,3.17972011]
[1724488561826,3.27664961,154.77,154.73,11.22340283]
[1724488562526,3.27664961,154.77,154.74,3.17962406]
[1724488562719,3.27664961,154.77,154.73,11.22340283]
[1724488562919,3.27664961,154.77,154.74,3.1795829]
[1724488563125,3.27664961,154.77,154.73,11.22340283]
[1724488563326,3.27664961,154.77,154.74,3.17961021]
[1724488563626,3.27664961,154.77,154.73,11.22340283]
[1724488563824,3.229,154.76,154.74,3.17961021]
[1724488564123,3.229,154.76,154.73,7.99380283]
[1724488564317,3.229,154.76,154.74,3.17960639]
[1724488564524,3.229,154.76,154.73,7.99380283]
[1724488564719,3.229,154.76,154.74,3.17965855]
[1724488564917,3.229,154.76,154.73,7.99380283]
[1724488565120,3.229,154.76,154.74,3.17968636]
[1724488565424,3.229,154.76,154.73,7.99380283]
[1724488565625,3.229,154.76,154.74,3.17963491]
[1724488565822,3.229,154.76,154.73,7.99380283]
[1724488566026,3.229,154.76,154.74,3.17960855]
[1724488566327,3.229,154.76,154.73,7.99380283]
[1724488566531,3.229,154.76,154.74,3.17960855]
[1724488566726,3.229,154.76,154.73,7.99380283]
[1724488567028,3.229,154.76,154.74,3.17955521]
[1724488567222,3.229,154.76,154.73,7.99380283]
[1724488567423,3.27674961,154.77,154.74,3.17943703]
[1724488567629,3.27674961,154.77,154.74,7.95]
[1724488572935,3.2291,154.76,154.73,3.27340283]
[1724488573124,3.2291,154.76,154.73,11.22340283]
[1724488585636,3.2291,154.76,154.74,3.17955234]
[1724488585843,3.2291,154.76,154.73,11.22340283]
[1724488586038,3.27674961,154.77,154.74,3.17955234]
[1724488586239,3.27674961,154.77,154.73,11.22340283]
[1724488586439,3.27674961,154.77,154.74,3.17955116]
[1724488586639,3.27674961,154.77,154.73,11.22340283]
[1724488586841,3.27674961,154.77,154.74,3.17955116]
[1724488587138,3.27674961,154.77,154.73,11.22340283]
[1724488587338,0.04784961,154.77,154.74,6.40893314]
[1724488587544,0.04784961,154.77,154.75,7.95]
[1724488589342,0.04784961,154.77,154.75,11.1792]
[1724488590239,0.04784961,154.77,154.76,3.229]
[1724488593048,0.04784961,154.77,154.76,11.179]